fUSD/lending_fUSD_20250403
["ID","MTS","AMOUNT","RATE_DAILY","PERIOD"]
[357051047,1743641442784,-1607.2753035,0.00025919,7]
[357051048,1743641442794,-151.0,0.00025919,7]
[357051049,1743641442803,-151.0,0.00025919,7]
[357051050,1743641442812,-15708.82621095,0.00025919,2]
[357051051,1743641442824,-1781.137005,0.00025919,2]
[357051052,1743641442835,-1363.68834929,0.00025919,2]
[357051053,1743641442846,-47.2874226,0.00025919,2]
[357051054,1743641442855,-3902.25652816,0.00025949,2]
[357051055,1743641442865,-642.73420115,0.00026,2]
[357051056,1743641442877,-1175.65386739,0.00026,2]
[357051057,1743641442886,-150.0,0.00026027,2]
[357051058,1743641442895,-489.08712798,0.00026179,2]
[357051061,1743641443050,-814.72287202,0.00026179,2]
[357051062,1743641443059,-5554.0,0.000263,3]
[357051063,1743641443069,-1303.90150637,0.00026443,2]
[357051064,1743641443079,-166.66,0.00026566,2]
[357051065,1743641443088,-260.40555912,0.00026627,2]
[357051066,1743641443098,-356.60298941,0.00026733,2]
[357051071,1743641443177,-145.37924,0.00026733,2]
[357051073,1743641443187,-4047.41458789,0.00026831,2]
[357051076,1743641443197,-626.278734,0.00026831,7]
[357051079,1743641443206,-151.0,0.00026831,7]
[357051082,1743641443216,-151.0,0.00026831,7]
[357051084,1743641443225,-259.781657,0.00026831,7]
[357051086,1743641443234,-626.278734,0.00026831,7]
[357051088,1743641443243,-784.782824,0.00026831,7]
[357051089,1743641443252,-784.782824,0.00026831,7]
[357051091,1743641443261,-151.0,0.00026831,7]
[357051093,1743641443270,-151.0,0.00026831,7]
[357051094,1743641443280,-4425.654875,0.00026831,7]
[357051095,1743641443290,-4425.654868,0.00026831,7]
[357051096,1743641443299,-151.0,0.00026831,7]
[357051097,1743641443308,-151.0,0.00026831,7]
[357051098,1743641443318,-367.88,0.00026849,2]
[357051099,1743641443327,-169.15,0.00026849,2]
[357051100,1743641443337,-158.04,0.00026849,2]
[357051101,1743641443346,-5554.0,0.000269,5]
[357051102,1743641443356,-250.0,0.00027,2]
[357051103,1743641443365,-155.73,0.00027062,2]
[357051104,1743641443375,-3481.80706475,0.000273,2]
[357051105,1743641443383,-150.0,0.00027397,2]
[357051106,1743641443392,-151.0,0.00027397,7]
[357051107,1743641443402,-151.0,0.00027397,7]
[357051108,1743641443411,-300.0,0.00027397,30]
[357051109,1743641443420,-1602.01,0.00027397,2]
[357051110,1743641443429,-204.65,0.00027397,7]
[357051111,1743641443438,-204.65,0.00027397,7]
[357051112,1743641443448,-204.65,0.00027397,7]
[357051113,1743641443458,-204.65,0.00027397,7]
[357051114,1743641443468,-204.65,0.00027397,7]
[357051115,1743641443478,-204.65,0.00027397,7]
[357051116,1743641443487,-204.65,0.00027397,7]
[357051117,1743641443497,-204.65,0.00027397,7]
[357051118,1743641443508,-204.65,0.00027397,7]
[357051119,1743641443517,-204.65,0.00027397,7]
[357051120,1743641443527,-204.65,0.00027397,7]
[357051121,1743641443539,-204.65,0.00027397,7]
[357051122,1743641443551,-204.65,0.00027397,7]
[357051123,1743641443560,-204.65,0.00027397,7]
[357051124,1743641443569,-204.65,0.00027397,7]
[357051125,1743641443579,-20.04920504,0.00027397,7]
[357051126,1743641443595,-184.60079496,0.00027397,7]
[357051127,1743641443604,-204.65,0.00027397,7]
[357051129,1743641443613,-204.65,0.00027397,7]
[357051130,1743641443623,-204.65,0.00027397,7]
[357051131,1743641443632,-204.65,0.00027397,7]
[357051132,1743641443642,-512.0,0.000274,2]
[357051133,1743641443651,-1000.0,0.00027456,2]
[357051134,1743641443660,-839.78935662,0.00027512,2]
[357051136,1743641443670,-151.0,0.000278,7]
[357051137,1743641443681,-193.316881,0.000278,7]
[357051138,1743641443692,-151.0,0.000278,7]
[357051139,1743641443702,-1000.0,0.000278,2]
[357051140,1743641443712,-500.0,0.00027826,5]
[357051141,1743641443722,-500.0,0.00027826,5]
[357051143,1743641443731,-151.0,0.00028,7]
[357051144,1743641443740,-175.459424,0.00028,7]
[357051145,1743641443750,-175.459424,0.00028,7]
[357051146,1743641443759,-151.0,0.000281,7]
[357051148,1743641443769,-626.278734,0.000281,7]
[357051150,1743641443778,-151.0,0.000281,7]
[357051152,1743641443787,-151.0,0.000281,7]
[357051154,1743641443796,-626.278732,0.000281,7]
[357051156,1743641443806,-784.782824,0.000281,7]
[357051158,1743641443815,-784.782825,0.000281,7]
[357051159,1743641443825,-644.0407206,0.00028129,4]
[357051160,1743641443838,-151.0,0.00028202,7]
[357051161,1743641443847,-234.0,0.000284,2]
[357051162,1743641443857,-1303.81,0.00028442,2]
[357051163,1743641443867,-151.0,0.00028517,7]
[357051164,1743641443877,-175.459424,0.00028517,7]
[357051165,1743641443887,-175.459424,0.00028517,7]
[357051166,1743641443896,-151.0,0.00028537,7]
[357051167,1743641443905,-151.0,0.00028637,7]
[357051168,1743641443916,-1284.0,0.00028699,2]
[357051169,1743641443926,-666.847,0.00028699,2]
[357051170,1743641443936,-2041.0,0.00028699,2]
[357051171,1743641443946,-1506.959,0.00028699,2]
[357051172,1743641443956,-573.0,0.00028699,2]
[357051173,1743641443966,-1275.0,0.00028699,2]
[357051174,1743641443976,-789.0,0.00028699,2]
[357051175,1743641443986,-543.0,0.00028699,2]
[357051176,1743641443995,-909.0,0.00028699,2]
[357051177,1743641444004,-1434.0,0.00028699,2]
[357051178,1743641444015,-4094.0,0.00028699,2]
[357051179,1743641444025,-3950.0,0.00028699,2]
[357051180,1743641444034,-151.0,0.00028699,2]
[357051181,1743641444045,-1017.0,0.00028699,2]
[357051182,1743641444055,-175.459424,0.00028699,7]
[357051183,1743641444065,-175.459428,0.00028699,7]
[357051184,1743641444074,-3902.25652816,0.00028711,2]
[357051185,1743641444085,-150.0,0.00028721,2]
[357051186,1743641444095,-150.0,0.00028729,2]
[357051187,1743641444104,-150.0,0.0002873,2]
[357051188,1743641444113,-150.0,0.0002873,2]
[357051189,1743641444124,-150.0,0.0002873,2]
[357051190,1743641444134,-151.0,0.00028737,7]
[357051191,1743641444143,-150.0,0.00028747,2]
[357051192,1743641444153,-150.0,0.00028753,2]
[357051193,1743641444163,-150.0,0.00028755,2]
[357051194,1743641444172,-150.0,0.00028756,2]
[357051195,1743641444182,-150.0,0.00028757,2]
[357051196,1743641444192,-150.0,0.0002876,2]
[357051197,1743641444202,-150.0,0.00028767,2]
[357051198,1743641444212,-150.0,0.00028767,2]
[357051199,1743641444222,-200.46137146,0.00028767,2]
[357051200,1743641444235,-1401.54862854,0.00028767,2]
[357051201,1743641444246,-150.0,0.00028768,2]
[357051202,1743641444256,-150.0,0.00028769,2]
[357051203,1743641444266,-150.0,0.00028792,2]
[357051204,1743641444275,-150.0,0.00028794,2]
[357051205,1743641444285,-150.0,0.00028795,2]
[357051206,1743641444299,-150.0,0.00028798,2]
[357051207,1743641444309,-150.0,0.00028799,2]
[357051208,1743641444319,-150.0,0.00028804,2]
[357051209,1743641444328,-150.0,0.00028808,2]
[357051210,1743641444338,-150.0,0.00028821,2]
[357051211,1743641444348,-150.0,0.00028831,2]
[357051212,1743641444358,-150.0,0.0002884,2]
[357051213,1743641444368,-150.0,0.00028844,2]
[357051214,1743641444378,-204.37666465,0.00028849,2]
[357051215,1743641444387,-152.48074373,0.00028853,2]
[357051216,1743641444398,-150.0,0.00028853,2]
[357051217,1743641444407,-150.0,0.00028861,2]
[357051218,1743641444417,-150.0,0.0002887,2]
[357051219,1743641444427,-150.0,0.00028873,2]
[357051220,1743641444436,-151.0,0.000289,7]
[357051221,1743641444446,-150.0,0.00028902,2]
[357051222,1743641444456,-1000.0,0.00028903,2]
[357051223,1743641444466,-150.0,0.00028906,2]
[357051224,1743641444476,-150.0,0.00028909,2]
[357051225,1743641444485,-150.0,0.00028911,2]
[357051226,1743641444495,-150.0,0.00028913,2]
[357051227,1743641444505,-150.0,0.0002892,2]
[357051228,1743641444515,-300.0,0.00028938,2]
[357051229,1743641444525,-150.0,0.00028939,2]
[357051230,1743641444535,-853.33831736,0.00028939,2]
[357051231,1743641444550,-150.0,0.00028942,2]
[357051232,1743641444559,-150.0,0.00028944,2]
[357051233,1743641444569,-150.0,0.00028945,2]
[357051234,1743641444579,-150.0,0.00028949,2]
[357051235,1743641444589,-150.0,0.00028954,2]
[357051236,1743641444599,-150.0,0.00028965,2]
[357051237,1743641444608,-500.0,0.00028973,5]
[357051238,1743641444618,-150.0,0.00028973,5]
[357051239,1743641444628,-150.0,0.00028977,2]
[357051240,1743641444637,-150.0,0.00028979,2]
[357051241,1743641444647,-150.0,0.00028981,2]
[357051242,1743641444656,-150.0,0.00028986,2]
[357051243,1743641444665,-4700.68257426,0.00029,2]
[357051244,1743641445749,-255.17549216,0.000149,2]
[357051245,1743641445759,-1332.0,0.00023654,2]
[357051246,1743641445768,-6189.4412959,0.00029,2]
[357051247,1743641445779,-3854.5065405,0.00029,2]
[357051248,1743641445791,-549.05,0.00029,2]
[357051249,1743641445802,-276.5830478,0.00029,2]
[357051250,1743641445847,-54.01602891,0.00029,2]
[357051251,1743641445861,-658.37860201,0.00029,2]
[357051252,1743641446189,-173.985201,0.00020852,2]
[357051253,1743641446198,-173.985201,0.00021394,2]
[357051254,1743641446207,-173.985201,0.00023127,7]
[357051255,1743641446216,-5031.044397,0.00029,2]
[357051264,1743641487721,221.18,0.00029936,120]
[357051265,1743641645108,2678.99,0.00034624,30]
[357051266,1743641995423,-308.0,0.00021123,12]
[357051274,1743642052999,-42.0,0.00021123,12]
[357051275,1743642053021,-250.0,0.00021123,2]
[357051276,1743642063949,-316.0,0.00021899,12]
[357051277,1743642206520,271.71467945,0.0003461,120]
[357051278,1743642235027,212.51060965,0.0003461,120]
[357051279,1743642436320,-350.0,0.00021899,12]
[357051280,1743642436341,-250.0,0.00021899,2]
[357051281,1743642436362,-150.0,0.00021917,2]
[357051282,1743642436383,-150.0,0.00023287,2]
[357051283,1743642436406,-31.42055185,0.00023989,2]
[357051284,1743642447124,-156.7610475,0.00023989,2]
[357051285,1743642447147,-1553.71724171,0.00023989,2]
[357051286,1743642447168,-350.0,0.00024089,12]
[357051287,1743642447196,-250.0,0.00024089,2]
[357051288,1743642447218,-350.0,0.00024089,12]
[357051289,1743642447239,-250.0,0.00024089,2]
[357051290,1743642447262,-207.82522855,0.00024656,2]
[357051291,1743642453106,-92.17477145,0.00024656,2]
[357051292,1743642453126,-251.23923244,0.00024657,2]
[357051293,1743642453147,-717.47648639,0.00024657,2]
[357051294,1743642454136,-2082.44351361,0.00024657,2]
[357051295,1743642454157,-977.85,0.00026643,2]
[357051296,1743642454182,-328.0,0.0002672,2]
[357051297,1743642454204,-2313.30544619,0.00026729,2]
[357051299,1743642631640,-349.48,0.00026849,2]
[357051300,1743642631650,-250.0,0.00027,2]
[357051301,1743642631659,-350.0,0.00027199,12]
[357051302,1743642631668,-250.0,0.00027199,2]
[357051303,1743642631677,-87.54279011,0.00027397,30]
[357051304,1743642631702,-212.45720989,0.00027397,30]
[357051305,1743642631711,-512.22721018,0.000274,2]
[357051306,1743642631720,-350.0,0.00027547,12]
[357051307,1743642631730,-250.0,0.00027547,2]
[357051308,1743642631739,-573.0,0.00027811,2]
[357051309,1743642631751,-1365.0,0.00027811,2]
[357051310,1743642631761,-1275.0,0.00027811,2]
[357051311,1743642631770,-789.0,0.00027811,2]
[357051312,1743642631780,-3015.769,0.00027811,2]
[357051313,1743642631790,-904.0,0.00027811,2]
[357051314,1743642631800,-1428.0,0.00027811,2]
[357051315,1743642631809,-541.0,0.00027811,2]
[357051316,1743642631818,-483.0305405,0.00028129,4]
[357051318,1743642631827,-898.07776883,0.00028366,2]
[357051402,1743642639531,-108.85223117,0.00028366,2]
[357051403,1743642639540,-838.81205759,0.00028372,2]
[357051404,1743642639553,-178.18794241,0.00028372,2]
[357051405,1743642639562,-566.78053102,0.00028372,2]
[357051419,1743642642464,-3383.21946898,0.00028372,2]
[357051420,1743642642474,-151.0,0.00028372,2]
[357051421,1743642642484,-428.36711599,0.00028395,2]
[357051422,1743642642493,-23900.0,0.0002853,2]
[357051423,1743642642503,-428.36711599,0.0002856,2]
[357051424,1743642642513,-250.0,0.00028607,2]
[357051425,1743642642523,-200.0,0.00028609,2]
[357051426,1743642642534,-150.0,0.0002877,7]
[357051427,1743642642545,-1082.72,0.00028857,2]
[357051428,1743642642555,-500.0,0.00028899,2]
[357051429,1743642642565,-152.38486,0.00028899,2]
[357051430,1743642642575,-832.0005,0.000289,2]
[357051431,1743642642586,-933.1407,0.000289,2]
[357051432,1743642642596,-223.9435,0.000289,2]
[357051433,1743642642606,-3907.6091,0.000289,2]
[357051434,1743642642616,-977.85,0.00028907,2]
[357051435,1743642642626,-200.0,0.00028933,2]
[357051436,1743642642635,-158.73,0.0002896,2]
[357051437,1743642642645,-500.0,0.00028973,2]
[357051438,1743642642655,-804.2614407,0.00028985,2]
[357051439,1743642642664,-682.8582,0.00028987,2]
[357051440,1743642642674,-950.972,0.0002899,21]
[357051441,1743642642683,-187.492,0.0002899,21]
[357051442,1743642642693,-13637.1365185,0.00028995,2]
[357051443,1743642642702,-4455.089761,0.00028995,2]
[357051444,1743642642711,-24173.85771884,0.00029,2]
[357051450,1743642643303,-545.306388,0.00029,2]
[357051451,1743642643318,-9828.70058461,0.00029,2]
[357051452,1743642643329,-11183.02078314,0.00029,2]
[357051457,1743642645399,-1118.0,0.00028372,2]
[357051458,1743642645408,-1751.60466713,0.00029,2]
[357051521,1743642733588,189.44,0.00029907,120]
[357051530,1743643265044,2500.0,0.00034616,120]
[357051531,1743643277121,158.58518855,0.00032,120]
[357051534,1743643626112,-1515.81655819,0.0001499,2]
[357051535,1743643626134,-266.84035472,0.00014999,2]
[357051536,1743643644998,2000.0,0.000149,5]
[357051537,1743643648095,-33.15964528,0.00014999,2]
[357051538,1743643648120,-3573.33588184,0.00015,2]
[357051539,1743643653163,-9872.28496661,0.00015,2]
[357051546,1743643742809,-187.52815749,0.000149,2]
[357051548,1743643742836,-750.94029794,0.000149,2]
[357051551,1743643749101,-106.63670206,0.000149,2]
[357051552,1743643749124,-4413.94100994,0.00015,2]
[357051560,1743643803457,-300.0,0.00014899,2]
[357051561,1743643803505,350.0,0.0001495,12]
[357051573,1743643831784,-1050.98254566,0.000149,2]
[357051574,1743643831796,-256.15736115,0.000149,2]
[357051575,1743643831808,-843.67775087,0.000149,2]
[357051576,1743643831880,-14100.95303751,0.000149,2]
[357051582,1743643837673,-1394.81435993,0.000149,2]
[357051583,1743643837714,-5.05104488,0.000149,2]
[357051584,1743643837723,-250.0,0.0001495,2]
[357051585,1743643837733,-171.33827668,0.00014999,2]
[357051586,1743643837742,-794868.60638331,0.00015,2]
[357051587,1743643837753,-4200.0,0.00015,2]
[357051588,1743643837811,-3453.598199,0.00015,2]
[357051589,1743643837823,-8462.38633254,0.00015,2]
[357051590,1743643837834,-2920.0991605,0.00015,2]
[357051591,1743643837846,-692.74999987,0.00015,2]
[357051592,1743643837860,-416.895,0.00015,2]
[357051593,1743643837872,-3750.0,0.00015,2]
[357051619,1743643839883,-2919.20167348,0.00015,2]
[357051620,1743643840145,-331.07,0.00015,2]
[357051686,1743643843551,-11795.5380778,0.00015,2]
[357051687,1743643843622,-571.72939449,0.00015,2]
[357051697,1743643845976,-2564.74654016,0.00015,2]
[357051710,1743643861554,3933.67674392,0.0001485,2]
[357051712,1743643930405,1509.19542549,0.00014,2]
[357051714,1743644137462,1000.0,0.00034616,30]
[357051715,1743644161338,499.99,0.00032,120]
[357051716,1743644166318,12658.0,0.00034616,30]
[357051718,1743644206737,538.94,0.00032,120]
[357051719,1743644264499,151.6,0.0001499,3]
[357051720,1743644371191,2524.26,0.00032,120]
[357051722,1743644386462,-170420.0,0.00015,2]
[357051725,1743644463084,435.52143167,0.00014784,2]
[357051726,1743644508155,517.954,0.00034611,120]
[357051728,1743644587177,-164.7601,0.00015,2]
[357051729,1743644642412,-157.06257029,0.00015,2]
[357051731,1743644825130,-158.62035584,0.00014924,2]
[357051732,1743644825150,-546.88401284,0.00014924,2]
[357051733,1743644825174,-656.61476414,0.00015,2]
[357051734,1743644832408,-4087.70510795,0.00015,2]
[357051735,1743644845102,-9497.32346752,0.00015,2]
[357051736,1743644935765,189.44,0.00025512,120]
[357051739,1743644956877,435.52143167,0.00014544,2]
[357051758,1743645031903,-660.96502563,0.00015,2]
[357051759,1743645032062,-739.80475959,0.00015,2]
[357051760,1743645032118,-59103.50109564,0.00015,2]
[357051761,1743645032131,-1276.50969675,0.00015,2]
[357051762,1743645032143,-250.0,0.00015012,2]
[357051763,1743645032152,-350.0,0.00015012,12]
[357051764,1743645032162,-274.17553392,0.0001575,2]
[357051765,1743645032172,-181.38347468,0.00015767,2]
[357051766,1743645032181,-505.34433751,0.00015767,2]
[357051767,1743645032191,-164.01871773,0.00015767,2]
[357051768,1743645032201,-181.2784516,0.00015767,2]
[357051769,1743645032211,-319.17419386,0.00015767,2]
[357051770,1743645032222,-500.63803034,0.00015767,2]
[357051771,1743645032231,-152.97741992,0.00015767,2]
[357051773,1743645032242,-500.0,0.00015767,2]
[357051775,1743645032252,-250.0,0.000165,2]
[357051777,1743645032263,-350.0,0.000165,12]
[357051779,1743645032273,-250.0,0.000165,2]
[357051781,1743645032283,-350.0,0.000165,12]
[357051783,1743645032293,-478.51392215,0.00017655,2]
[357051785,1743645032303,-153.27841441,0.00019,2]
[357051787,1743645032313,-1593.2287394,0.00019073,2]
[357051789,1743645032323,-500.0,0.00019671,2]
[357051791,1743645032333,-502.91068337,0.00021246,2]
[357051793,1743645032343,-500.0,0.00022082,2]
[357051794,1743645032353,-159.56,0.00023836,2]
[357051796,1743645032362,-8540.64896346,0.0002515,2]
[357051799,1743645032387,-15359.35103654,0.0002515,2]
[357051801,1743645032398,-503.46,0.00025183,2]
[357051803,1743645032408,-1000.0,0.00025327,2]
[357051805,1743645032418,-150.0,0.00025968,7]
[357051807,1743645032427,-175.81,0.00026849,2]
[357051809,1743645032436,-150.0,0.00026881,2]
[357051810,1743645032446,-250.0,0.00027,2]
[357051812,1743645032456,-866.17,0.00027397,2]
[357051814,1743645032465,-300.0,0.00027397,30]
[357051816,1743645032474,-250.0,0.00027769,2]
[357051818,1743645032484,-921.677,0.00027811,17]
[357051820,1743645032494,-155.73,0.00027837,2]
[357051821,1743645032504,-927.13,0.00028042,2]
[357051823,1743645032514,-2751.0,0.00028109,2]
[357051825,1743645032524,-410.6165995,0.00028129,4]
[357051827,1743645032533,-1057.994,0.00028315,2]
[357051829,1743645032543,-1326.02668097,0.00028315,2]
[357051847,1743645037707,-1156.21961903,0.00028315,2]
[357051848,1743645037716,-960.6051,0.00028315,2]
[357051849,1743645037726,-5022.476788,0.00028415,2]
[357051850,1743645037738,-1000.0,0.00028493,2]
[357051851,1743645037747,-646.826,0.00028599,2]
[357051852,1743645037756,-1288.186,0.00028599,2]
[357051853,1743645037765,-2041.0,0.00028599,2]
[357051854,1743645037774,-1371.59,0.00028599,2]
[357051855,1743645037783,-574.0,0.00028599,2]
[357051856,1743645037793,-1279.869,0.00028599,2]
[357051857,1743645037802,-789.0,0.00028599,2]
[357051858,1743645037811,-152.88,0.00028599,2]
[357051859,1743645037820,-3951.0,0.00028599,2]
[357051860,1743645037829,-1017.0,0.00028599,2]
[357051861,1743645037839,-1254.5681,0.000287,2]
[357051862,1743645037848,-3927.8208,0.000287,2]
[357051863,1743645037858,-1000.0,0.000287,2]
[357051864,1743645037867,-866.17,0.00028767,2]
[357051865,1743645037877,-3200.78859297,0.000288,2]
[357051866,1743645037901,-71.70387449,0.000288,2]
[357051867,1743645038004,-1886.09233716,0.000288,2]
[357051868,1743645038016,-839.51001861,0.000288,2]
[357051869,1743645038027,-1823.8,0.000288,2]
[357051870,1743645038039,-1072.33307677,0.000288,2]
[357051871,1743645038049,-665.2963,0.000288,2]
[357051872,1743645038059,-1338.932,0.000288,2]
[357051873,1743645038073,-1000.0,0.000288,2]
[357051874,1743645038082,-390.67908195,0.000288,2]
[357051877,1743645038102,-4267.70465744,0.000288,2]
[357051879,1743645038111,-1380.83032649,0.000288,2]
[357051881,1743645038127,-1416.61649412,0.000288,2]
[357052084,1743645041589,-520.61822548,0.00014999,2]
[357052086,1743645041599,-715.56987236,0.000288,2]
[357052088,1743645041611,-331.07,0.000288,2]
[357052093,1743645041643,-412.73189682,0.00014999,2]
[357052190,1743645042760,-101.13372516,0.00014999,2]
[357052192,1743645042769,-221.43617644,0.000288,2]
[357052195,1743645043041,-12.34471135,0.000288,2]
[357052201,1743645043696,-210.10271924,0.000288,2]
[357052202,1743645043707,-1384.12996162,0.000288,2]
[357052203,1743645043719,-446.34083838,0.000288,2]
[357052204,1743645043728,-7064.1424,0.000289,2]
[357052205,1743645043738,-3588.55676168,0.000289,2]
[357052212,1743645045764,-31407.49863832,0.000289,2]
[357052213,1743645045777,-2069.0783,0.000289,2]
[357052214,1743645045787,-1232.0,0.000289,2]
[357052215,1743645045797,-500.0,0.000289,2]
[357052216,1743645045806,-1415.0,0.000289,3]
[357052217,1743645045816,-1190.95202199,0.00028926,2]
[357052222,1743645046297,-34833.91527801,0.00028926,2]
[357052223,1743645046306,-19166.95421092,0.00029,2]
[357052224,1743645046315,-300.0,0.00029,2]
[357052225,1743645046326,-2261.2656537,0.0002948,2]
[357052226,1743645046336,-6965.0435016,0.0002948,2]
[357052227,1743645046345,-5554.0,0.000296,5]
[357052228,1743645046356,-152.0,0.00029686,3]
[357052229,1743645046365,-152.0,0.00029936,4]
[357052230,1743645046375,-506.62516583,0.0003,5]
[357052231,1743645046384,-10814.59154482,0.0003,2]
[357052232,1743645046394,-463.11570012,0.0003,2]
[357052233,1743645046403,-924.21355534,0.0003,15]
[357052234,1743645046413,-241.931,0.00030099,2]
[357052235,1743645046422,-181.384,0.00030099,2]
[357052236,1743645046431,-256.639,0.00030099,2]
[357052237,1743645046441,-171.671,0.00030099,2]
[357052238,1743645046450,-866.17,0.00030137,2]
[357052239,1743645046459,-152.0,0.00030185,5]
[357052240,1743645046469,-153.92,0.00030215,2]
[357052241,1743645046479,-153.92,0.00030246,2]
[357052242,1743645046488,-153.92,0.00030276,2]
[357052243,1743645046498,-153.92,0.00030306,2]
[357052244,1743645046507,-927.13,0.00030306,2]
[357052245,1743645046516,-153.92,0.00030336,2]
[357052246,1743645046680,-4658.38373938,0.00030344,2]
[357052247,1743645046691,-153.92,0.00030366,2]
[357052248,1743645046701,-152.0,0.00030435,6]
[357052249,1743645046712,-158.73,0.00030553,2]
[357052250,1743645046722,-1890.33316016,0.000306,2]
[357052251,1743645046732,-152.0,0.00030685,7]
[357052252,1743645046745,-300.0,0.00030822,30]
[357052253,1743645046754,-152.0,0.00030934,8]
[357052254,1743645046764,-350.0,0.00031,2]
[357052255,1743645046774,-924.0,0.000311,2]
[357052256,1743645046783,-987.0,0.000311,2]
[357052257,1743645046793,-370.0,0.000311,2]
[357052258,1743645046803,-301.0,0.000311,2]
[357052259,1743645046813,-152.0,0.00031184,9]
[357052260,1743645046823,-152.0,0.00031434,10]
[357052261,1743645046832,-1026.3502,0.00031499,2]
[357052262,1743645046842,-169.01492725,0.00031499,2]
[357052263,1743645046852,-866.17,0.00031507,2]
[357052264,1743645046861,-643.0,0.00031599,2]
[357052265,1743645046870,-2041.0,0.00031599,2]
[357052266,1743645046880,-1366.0,0.00031599,2]
[357052267,1743645046890,-574.0,0.00031599,2]
[357052268,1743645046899,-1276.0,0.00031599,2]
[357052269,1743645046909,-789.0,0.00031599,2]
[357052270,1743645046919,-151.0,0.00031599,2]
[357052271,1743645046928,-3114.147,0.00031599,2]
[357052272,1743645046937,-177.729,0.00031599,2]
[357052273,1743645046946,-1000.0,0.00031659,2]
[357052274,1743645046955,-152.0,0.00031683,11]
[357052275,1743645046965,-3259.86747748,0.00031833,2]
[357052276,1743645046977,-4658.38373938,0.00031889,2]
[357052277,1743645046986,-66302.2964,0.000319,2]
[357052278,1743645046995,-152.0,0.00031933,12]
[357052279,1743645047005,-31233.70743678,0.00032,2]
[357052280,1743645047014,-152.08429418,0.00032,2]
[357052281,1743645047024,-158.73,0.00032146,2]
[357052282,1743645047033,-152.0,0.00032183,13]
[357052283,1743645047043,-166.66,0.00032193,2]
[357052284,1743645047052,-682.7,0.000323,2]
[357052285,1743645047061,-682.71,0.00032333,2]
[357052286,1743645047071,-682.7,0.00032367,2]
[357052287,1743645047081,-682.71,0.000324,2]
[357052288,1743645047091,-152.0,0.00032432,14]
[357052289,1743645047101,-927.13,0.0003257,2]
[357052290,1743645047112,-349.48,0.00032646,2]
[357052291,1743645047121,-175.81,0.00032646,2]
[357052292,1743645047130,-152.0,0.00032682,15]
[357052293,1743645047140,-1483.0,0.000328,5]
[357052294,1743645047150,-4634.58980259,0.000328,2]
[357052295,1743645047164,-329.95,0.00032877,2]
[357052296,1743645047174,-866.17,0.00032877,2]
[357052297,1743645047184,-160.02,0.00032932,120]
[357052298,1743645047194,-152.0,0.00032932,16]
[357052299,1743645047203,-25023.90320976,0.00033,2]
[357052300,1743645047213,-156.99764985,0.00033,120]
[357052301,1743645047222,-400.0,0.00033,2]
[357052302,1743645047232,-3259.86747744,0.0003304,2]
[357052303,1743645047243,-150.0,0.00033099,2]
[357052304,1743645047252,-200.0,0.00033151,2]
[357052305,1743645047262,-152.0,0.00033181,17]
[357052306,1743645047271,-166.66,0.00033256,2]
[357052307,1743645047281,-152.0,0.00033431,18]
[357052308,1743645047290,-4658.38373938,0.00033433,2]
[357052309,1743645047300,-1164.07277116,0.000335,2]